bitfinex-derivatives/quotes_SOLF0:USTF0_20250730
["timestamp","ask_amount","ask_price","bid_price","bid_amount"]
[1753868503124,8.8,178.89,178.81,4.54006193]
[1753868503319,4.59373013,178.88,178.81,4.54006193]
[1753868503519,4.59373013,178.87,178.82,3.1]
[1753868503826,3.21,178.89,178.82,3.1]
[1753868504018,4.59437949,178.88,178.82,3.1]
[1753868504217,8.8,178.89,178.86,3.1]
[1753868504424,4.5956164,178.88,178.87,3.1]
[1753868504719,13.3958164,178.88,178.85,3.1]
[1753868504928,8.8002,178.88,178.85,3.1]
[1753868505124,3.21,178.87,178.86,3.1]
[1753868505321,3.21,178.88,178.86,3.1]
[1753868505530,3.21,178.91,178.86,3.1]
[1753868505716,4.59757798,178.9,178.87,5.5905]
[1753868505921,4.59757798,178.9,178.88,3.1]
[1753868505922,3.21,178.9,178.88,3.1]
[1753868506220,8.7991,178.92,178.88,5.59]
[1753868506425,12.24869059,178.91,178.89,3.1]
[1753868506619,3.21,178.91,178.89,3.1]
[1753868507520,3.21,178.91,178.9,3.1]
[1753868507725,7.87910739,178.96,178.9,3.1]
[1753868507922,17.30709542,178.95,178.9,3.1]
[1753868508123,3.21,178.93,178.91,8.6891]
[1753868508525,4.66910739,178.97,178.91,8.6891]
[1753868508726,3.21,178.94,178.89,3.1]
[1753868508924,3.21,178.91,178.89,3.1]
[1753868509126,3.21,178.9,178.84,4.54006193]
[1753868509332,8.7996,178.9,178.86,5.5907]
[1753868509633,3.21,178.92,178.85,3.1]
[1753868509827,7.83881178,178.91,178.85,3.1]
[1753868510023,5.5898,178.9,178.84,4.54006193]
[1753868510229,3.21,178.9,178.88,3.1]
[1753868511027,5.5897,178.9,178.85,5.591]
[1753868511230,3.21,178.89,178.87,3.1]
[1753868511532,8.5801,178.89,178.87,3.1]
[1753868512125,8.5802,178.88,178.87,3.1]
[1753868512333,2.99,178.87,178.85,3.12]
[1753868513233,2.99,178.92,178.83,3.12]
[1753868513425,4.62940751,178.91,178.85,3.12]
[1753868513624,4.62940751,178.9,178.85,3.12]
[1753868513832,7.68761066,178.93,178.85,3.12]
[1753868513833,5.589,178.92,178.88,5.59]
[1753868514033,4.62942782,178.91,178.89,3.12]
[1753868514230,2.99,178.94,178.89,3.12]
[1753868514425,10.21755068,178.93,178.89,5.5899]
[1753868514731,4.62865068,178.92,178.91,3.12]
[1753868516034,2.99,178.93,178.91,3.12]
[1753868516234,5.5885,178.94,178.89,3.12]
[1753868516531,7.58625541,178.93,178.89,3.12]
[1753868516732,2.99,178.93,178.89,3.12]
[1753868517126,9.23767259,178.97,178.89,3.12]
[1753868517127,5.5881,178.95,178.89,3.12]
[1753868517435,12.4626374,179.07,178.78,158.15337716]
[1753868517436,7.68761066,178.99,178.91,3.12]
[1753868517628,2.99,178.97,178.93,8.7085]
[1753868517838,4.5948595,178.96,178.93,3.12]
[1753868518035,4.69761066,179.0,178.93,3.12]
[1753868518338,4.69761066,179.0,178.96,3.12]
[1753868518339,7.58485846,178.99,178.96,3.12]
[1753868518634,4.59485846,178.98,178.97,3.12]
[1753868519034,2.99,178.96,178.93,3.12]
[1753868519242,2.99,178.96,178.92,4.54006193]
[1753868519538,2.99,178.97,178.95,3.12]
[1753868519727,9.23767259,179.02,178.96,3.12]
[1753868519930,2.99,179.0,178.96,5.5875]
[1753868520142,4.59089759,178.99,178.98,3.12]
[1753868520335,7.58089759,178.99,178.98,3.12]
[1753868520535,7.58089759,178.99,178.97,3.12]
[1753868520733,2.99,178.98,178.96,3.12]
[1753868520926,5.587,178.99,178.93,3.12]
[1753868521131,4.58843753,178.98,178.93,3.12]
[1753868521337,2.99,179.01,178.94,3.12]
[1753868521634,2.99,178.95,178.89,3.12]
[1753868521835,2.99,178.97,178.89,3.12]
[1753868522036,2.99,178.95,178.89,3.12]
[1753868522639,8.5785,178.94,178.9,5.5893]
[1753868522930,2.99,178.94,178.87,4.54006193]
[1753868523138,2.99,178.98,178.92,3.12]
[1753868523332,2.99,178.96,178.92,3.12]
[1753868523538,2.99,178.94,178.92,3.12]
[1753868524132,2.99,178.94,178.92,5.589]
[1753868524329,8.5779,178.96,178.93,3.12]
[1753868524535,2.99,178.95,178.93,3.12]
[1753868524935,5.5876,178.97,178.94,3.12]
[1753868525136,2.99,178.96,178.94,3.12]
[1753868525932,2.99,178.98,178.94,5.5882]
[1753868526134,4.5848147,178.97,178.96,3.12]
[1753868526539,5.5869,178.99,178.96,3.12]
[1753868526738,4.58393298,178.98,178.97,3.12]
[1753868527240,2.99,179.0,178.97,3.12]
[1753868527439,4.58282128,178.99,178.98,3.12]
[1753868527641,2.99,178.98,178.91,3.12]
[1753868527843,2.99,178.95,178.89,3.12]
[1753868528341,8.5783,178.95,178.91,5.5891]
[1753868528534,2.99,178.98,178.92,3.12]
[1753868528732,5.5883,178.95,178.92,3.12]
[1753868528934,2.99,178.94,178.92,3.12]
[1753868529843,2.99,178.97,178.88,3.12]
[1753868530144,2.99,178.97,178.9,3.12]
[1753868530442,2.99,178.99,178.91,4.54006193]
[1753868530638,2.99,179.03,178.94,3.12]
[1753868530840,2.99,179.01,178.94,3.12]
[1753868532039,2.99,179.01,178.86,4.54006193]
[1753868532040,8.5757,179.03,179.0,3.12]
[1753868532243,2.99,179.03,179.01,3.12]
[1753868532643,8.5758,179.03,179.01,3.12]
[1753868532847,2.99,179.03,179.01,3.12]
[1753868533044,2.99,179.02,179.01,3.12]
[1753868533844,8.5759,179.02,179.01,3.12]
[1753868535448,2.99,179.06,179.01,3.12]
[1753868535650,2.99,179.04,179.02,3.12]
[1753868536350,5.5856,179.03,179.02,3.12]
[1753868536546,4.54006193,179.09,179.03,3.12]
[1753868536752,4.51769074,179.08,179.0,3.12]
[1753868536952,4.51769074,179.07,179.01,5.5861]
[1753868537154,2.99,179.05,179.02,3.12]
[1753868537455,2.99,179.04,179.03,3.12]
[1753868537648,2.99,179.06,178.99,4.54006193]
[1753868537853,2.99,179.08,179.0,3.12]
[1753868538052,5.5844,179.07,179.04,5.585]
[1753868538350,2.99,179.06,179.04,3.12]
[1753868538544,2.99,179.05,179.04,3.12]
[1753868538744,4.54006193,179.07,179.0,3.12]
[1753868538946,5.5855,179.04,179.0,3.12]
[1753868539145,2.99,179.05,178.97,3.12]
[1753868539551,5.5865,179.01,178.97,5.5872]
[1753868539853,2.99,179.0,178.98,3.12]
[1753868540057,8.5766,179.0,178.98,3.12]
[1753868541056,2.99,179.0,178.98,3.12]
[1753868541457,3.21,179.04,178.98,5.5871]
[1753868541755,3.21,179.02,179.0,3.02]
[1753868542657,5.5864,179.01,179.0,3.02]
[1753868542861,5.5864,179.01,178.98,5.5871]
[1753868542862,3.21,179.04,179.01,3.02]
[1753868543049,7.72881624,179.03,179.01,3.02]
[1753868543252,4.51881624,179.02,179.01,3.02]
[1753868543449,12.44767259,179.07,179.01,3.02]
[1753868543652,7.72961615,179.06,179.01,3.02]
[1753868543854,4.51961615,179.05,179.01,3.02]
[1753868544054,10.10501615,179.04,179.01,8.606]
[1753868544254,4.5203969,179.03,179.02,3.02]
[1753868544461,5.5869,178.99,178.97,3.02]
[1753868544658,5.5869,178.99,178.98,3.02]
[1753868544859,3.21,179.0,178.98,3.02]
[1753868545160,5.5866,179.0,178.99,3.02]
[1753868545856,8.7962,179.01,178.99,3.02]
[1753868546062,8.7962,179.01,179.0,3.02]
[1753868546354,5.5862,179.01,179.0,3.02]
[1753868546562,5.586,179.02,179.01,3.02]
[1753868546858,3.21,179.01,178.96,3.02]
[1753868547155,4.52402757,179.0,178.97,3.02]
[1753868547356,3.21,178.99,178.94,2.78183326]
[1753868547555,3.21,178.99,178.95,3.02]
[1753868547762,5.99183326,179.02,178.95,3.02]
[1753868548060,5.99183326,179.02,178.97,5.5874]
[1753868548061,5.5868,178.99,178.97,5.5874]
[1753868548260,5.5868,178.99,178.94,2.78183326]
[1753868548462,8.7968,178.99,178.98,3.02]
[1753868548862,5.5866,179.0,178.98,3.02]
[1753868549059,2.78183326,179.04,178.97,3.02]
[1753868549261,3.21,179.02,178.97,8.6074]
[1753868549465,3.21,179.0,178.98,3.02]
[1753868549760,5.587,178.99,178.98,3.02]
[1753868550556,5.5862,179.01,178.99,3.02]
[1753868550751,3.21,179.02,178.99,3.02]
[1753868550956,4.52727438,179.01,178.99,3.02]
[1753868551159,3.21,179.03,178.97,3.02]
[1753868551361,3.21,179.0,178.98,3.02]
[1753868551761,5.5868,178.99,178.98,3.02]
[1753868552464,5.5868,178.99,178.94,2.78183326]
[1753868552465,8.7966,179.0,178.94,2.78183326]
[1753868552664,3.21,179.03,179.01,3.02]
[1753868552864,4.52862799,179.02,179.01,3.02]
[1753868553166,13.32452799,179.02,179.01,3.02]
[1753868553562,4.52862799,179.02,179.01,3.02]
[1753868553767,5.5855,179.04,179.01,5.5862]
[1753868553966,7.90761066,179.08,179.0,2.78183326]
[1753868554162,7.73810575,179.07,179.05,3.02]
[1753868554369,10.11290575,179.06,179.05,3.02]
[1753868554666,3.21,179.05,178.98,3.02]
[1753868554864,5.5864,179.01,178.98,5.5869]
[1753868555068,3.21,179.01,178.99,3.02]
[1753868555370,8.7963,179.01,179.0,3.02]
[1753868555568,5.5863,179.01,179.0,3.02]
[1753868557369,5.5859,179.02,179.01,3.02]
[1753868557569,10.11783577,179.02,179.01,3.02]
[1753868557770,4.53193577,179.02,179.01,3.02]
[1753868557967,5.99183326,179.07,179.02,3.02]
[1753868558173,4.53149175,179.06,179.02,3.02]
[1753868558471,5.99183326,179.09,179.02,2.78183326]
[1753868558669,7.74262434,179.08,179.03,3.02]
[1753868558872,7.74262434,179.07,179.04,3.02]
[1753868559069,10.11722434,179.06,179.05,3.02]
[1753868561372,4.53262434,179.06,179.05,3.02]
[1753868562666,3.21,179.1,179.05,3.02]
[1753868562862,3.21,179.1,179.05,8.6048]
[1753868562863,4.53401378,179.09,179.05,8.6048]
[1753868563072,4.53401378,179.08,179.06,3.02]
[1753868563268,5.5839,179.09,179.06,3.02]
[1753868563572,4.53271964,179.08,179.06,3.02]
[1753868563776,5.5839,179.09,179.05,3.02]
[1753868563963,4.53271964,179.08,179.05,3.02]
[1753868564169,5.5839,179.09,179.05,8.6048]
[1753868564469,4.53191384,179.08,179.05,5.5848]
[1753868564671,5.584,179.08,179.07,3.02]
[1753868564869,4.53191384,179.08,179.06,3.02]
[1753868565074,3.21,179.09,179.03,3.02]
[1753868565379,3.21,179.09,179.05,5.5849]
[1753868565673,3.21,179.1,179.06,3.02]
[1753868565870,4.53097251,179.09,179.07,3.02]
[1753868566078,2.78183326,179.12,179.07,3.02]
[1753868566372,5.5834,179.1,179.04,2.78183326]
[1753868566675,4.51665145,179.09,179.08,3.02]
[1753868566975,10.10035145,179.09,179.08,3.02]
[1753868567869,5.5837,179.09,179.08,3.02]
[1753868568073,8.7937,179.09,179.08,3.02]
[1753868568374,13.30929965,179.09,179.08,3.02]
[1753868568975,5.5842,179.08,179.04,3.02]
[1753868569474,3.21,179.09,179.07,3.02]
[1753868569676,8.7938,179.09,179.07,3.02]
[1753868570075,8.7938,179.09,179.07,5.5843]
[1753868570278,5.5835,179.1,179.08,3.02]
[1753868570574,5.5835,179.1,179.09,3.02]
[1753868570775,10.09989187,179.1,179.09,3.02]
[1753868571280,13.30989187,179.1,179.09,3.02]
[1753868572378,10.09989187,179.1,179.09,3.02]
[1753868572576,4.51639187,179.1,179.09,3.02]
[1753868573079,10.09979187,179.1,179.09,3.02]
[1753868576282,5.584,179.09,179.08,3.27]
[1753868576482,3.2,179.08,179.05,3.27]
[1753868576777,7.89761066,179.06,178.96,3.27]
[1753868576971,3.2,179.01,178.94,3.27]
[1753868577172,7.29822513,179.0,178.94,3.27]
[1753868577379,10.10339187,178.99,178.94,3.27]
[1753868577576,3.2,179.01,178.94,3.27]
[1753868577885,10.107207,179.0,178.94,3.27]
[1753868578083,5.5866,179.0,178.96,5.5875]
[1753868578278,3.2,179.03,178.97,3.27]
[1753868578578,10.1467179,179.02,178.98,5.587]
[1753868578783,4.5606179,179.01,179.0,3.27]
[1753868579085,7.7606179,179.01,178.99,3.27]
[1753868579283,4.5606179,179.0,178.99,3.27]
[1753868580483,5.586,179.02,178.99,3.27]
[1753868580683,3.2,179.05,178.99,2.78183326]
[1753868580886,4.56012841,179.04,179.0,3.27]
[1753868581078,3.2,179.07,179.0,3.27]
[1753868581384,4.55993602,179.06,179.04,3.27]
[1753868581588,5.5838,179.09,179.04,3.27]
[1753868581784,4.55913718,179.08,179.05,5.5849]
[1753868581980,5.5838,179.09,179.07,3.27]
[1753868582176,4.55889314,179.08,179.06,3.27]
[1753868582383,5.5838,179.09,179.08,3.27]
[1753868582682,10.14231894,179.09,179.08,3.27]
[1753868583587,5.5845,179.07,179.06,3.27]
[1753868583985,9.22675147,179.13,179.03,4.52914081]
[1753868584190,4.55816322,179.12,179.1,3.27]
[1753868584397,4.55816322,179.11,179.1,3.27]
[1753868584788,10.14126322,179.11,179.1,3.27]
[1753868586001,4.55816322,179.11,179.1,3.27]
[1753868586501,3.2,179.15,179.07,4.52914081]
[1753868586702,8.7824,179.13,179.11,3.27]
[1753868586901,4.55637168,179.12,179.11,3.27]
[1753868587300,10.13917168,179.12,179.11,3.27]
[1753868588304,5.5825,179.13,179.12,3.27]
[1753868588504,10.13770257,179.13,179.12,3.27]
[1753868589098,13.33770257,179.13,179.12,3.27]
[1753868589303,10.13770257,179.13,179.12,3.27]
[1753868589806,4.55520257,179.13,179.12,3.27]
[1753868590001,5.5822,179.14,179.12,3.27]
[1753868590207,5.5819,179.15,179.12,3.27]
[1753868590504,4.55336364,179.14,179.12,3.27]
[1753868590706,5.5821,179.15,179.12,3.27]
[1753868591008,4.55336344,179.14,179.12,3.27]
[1753868591209,5.5823,179.14,179.1,5.5833]
[1753868591502,5.5823,179.14,179.13,3.27]
[1753868591706,10.13487612,179.14,179.13,3.27]
[1753868591909,7.75257612,179.14,179.11,3.27]
[1753868592104,3.2,179.13,179.09,4.52914081]
[1753868592309,3.2,179.17,179.09,10.11254081]
[1753868592608,5.5824,179.14,179.13,3.27]
[1753868592809,10.13492632,179.14,179.13,3.27]
[1753868593713,5.5824,179.14,179.13,3.27]
[1753868594014,3.2,179.17,179.13,3.27]
[1753868594212,4.55213081,179.16,179.12,3.27]
[1753868594406,4.55213081,179.15,179.13,4.52914081]
[1753868594606,5.5814,179.17,179.14,3.27]
[1753868594807,3.2,179.19,179.14,3.27]
[1753868595007,7.7507764,179.18,179.14,3.27]
[1753868595209,3.2,179.18,179.14,3.27]
[1753868595511,5.5813,179.17,179.14,3.27]
[1753868596509,8.7813,179.17,179.14,3.27]
[1753868596704,5.5813,179.17,179.13,10.11144081]
[1753868597010,5.5813,179.17,179.16,3.27]
[1753868600311,5.581,179.18,179.16,3.27]
[1753868600513,5.581,179.18,179.17,3.27]
[1753868600707,3.2,179.18,179.06,3.27]
[1753868600906,5.5814,179.17,179.15,3.27]
[1753868601213,3.2,179.18,179.15,3.27]
[1753868601410,8.781,179.18,179.15,3.27]
[1753868601813,3.2,179.18,179.15,3.27]
[1753868602206,5.5814,179.17,179.15,3.27]
[1753868602513,3.11,179.2,179.14,3.16]
[1753868602715,3.11,179.17,179.15,3.16]
[1753868602913,5.5817,179.16,179.15,3.16]
[1753868603411,3.11,179.16,179.12,5.5827]
[1753868603610,3.11,179.16,179.14,3.16]
[1753868603811,3.11,179.2,179.11,4.52914081]
[1753868604013,5.5831,179.11,179.1,3.16]
[1753868605113,5.5829,179.12,179.1,3.16]
[1753868608820,5.88834679,179.13,179.08,3.16]
[1753868609010,3.11,179.1,179.06,3.16]
[1753868609214,3.11,179.09,179.07,3.16]
[1753868609710,3.11,179.08,179.07,3.16]
[1753868609912,3.11,179.1,179.06,5.5846]
[1753868610122,3.11,179.1,179.08,3.16]
[1753868610317,8.6939,179.09,179.08,3.16]
[1753868610925,3.11,179.08,179.06,3.16]
[1753868611120,3.11,179.08,179.07,3.16]
[1753868611512,3.11,179.08,179.05,147.66330021]
[1753868611728,3.11,179.08,179.04,3.16]
[1753868612114,3.11,179.08,179.01,107.47834679]
[1753868612312,3.11,179.06,179.02,3.16]
[1753868612513,3.11,179.06,179.0,3.16]
[1753868613024,5.5854,179.04,179.01,5.5859]
[1753868613220,5.5854,179.04,179.03,3.16]
[1753868613424,3.11,179.09,179.03,3.16]
[1753868613627,5.5846,179.07,179.03,5.5853]
[1753868613923,3.11,179.08,179.04,3.16]
[1753868614126,3.11,179.13,179.07,2.77834679]
[1753868614315,4.53687093,179.12,179.08,3.16]
[1753868614514,3.11,179.13,179.08,3.16]
[1753868614722,5.5836,179.1,179.09,3.16]
[1753868617623,8.6936,179.1,179.09,3.16]
[1753868617926,5.5836,179.1,179.09,3.16]
[1753868619023,8.6936,179.1,179.09,3.16]
[1753868619227,5.5841,179.08,179.07,3.16]
[1753868620524,3.11,179.09,179.02,3.16]
[1753868620933,5.5848,179.06,179.03,5.5855]
[1753868621127,3.11,179.09,179.04,3.16]
[1753868621319,2.77834679,179.1,179.03,5.5855]
[1753868621523,3.11,179.07,179.06,3.16]
[1753868622024,5.5843,179.07,179.06,3.16]
[1753868622231,3.11,179.08,179.07,3.16]
[1753868622623,8.694,179.08,179.07,3.16]
[1753868623622,3.11,179.08,179.04,5.5852]
[1753868623827,3.11,179.07,179.05,3.16]
[1753868624028,2.77834679,179.1,179.04,5.5852]
[1753868624232,8.694,179.08,179.07,3.16]
[1753868626126,13.25798686,179.08,179.07,3.16]
[1753868630428,4.56398686,179.08,179.07,3.16]
[1753868630625,5.88834679,179.12,179.07,3.16]
[1753868630825,7.67453722,179.11,179.07,3.16]
[1753868631025,5.584,179.08,179.07,3.16]
[1753868632040,3.17,179.15,179.08,3.02]
[1753868632231,7.73376503,179.14,179.09,2.77834679]
[1753868632526,5.5832,179.11,179.1,3.02]
[1753868633128,3.17,179.09,179.03,2.77834679]
[1753868633531,3.17,179.09,179.04,3.02]
[1753868633724,2.77834679,179.13,179.05,3.02]
[1753868633926,3.17,179.11,179.05,3.02]
[1753868634138,5.5841,179.08,179.05,8.6047]
[1753868634330,5.94834679,179.13,179.06,3.02]
[1753868634625,4.56414975,179.12,179.06,3.02]
[1753868634831,4.56414975,179.11,179.06,3.02]
[1753868635026,7.73414975,179.1,179.06,3.02]
[1753868635226,5.5838,179.09,179.06,5.5844]
[1753868635428,3.17,179.12,179.07,3.02]
[1753868635629,4.56423347,179.11,179.07,3.02]
[1753868635830,3.17,179.12,179.07,3.02]
[1753868636030,4.56432792,179.11,179.07,3.02]
[1753868636225,3.17,179.12,179.07,3.02]
[1753868636431,4.56434121,179.11,179.07,3.02]
[1753868636734,3.17,179.11,179.07,3.02]
[1753868637131,5.5838,179.09,179.07,3.02]
[1753868637833,5.584,179.08,179.07,3.02]
[1753868638728,3.17,179.1,179.06,3.02]
[1753868638928,3.17,179.08,179.06,3.02]
[1753868639131,5.5847,179.06,179.03,8.36384679]
[1753868639324,5.5847,179.06,179.04,3.02]
[1753868639929,2.77834679,179.11,178.99,104.58]
[1753868639930,2.77834679,179.07,178.99,107.6]
[1753868640136,3.17,179.03,179.0,3.02]
[1753868640334,2.77834679,179.01,178.94,2.77834679]
[1753868640525,2.77834679,178.99,178.92,2.77834679]
[1753868640729,5.94834679,178.99,178.93,3.02]
[1753868640931,5.94834679,179.01,178.93,3.02]
[1753868641128,4.56691222,179.0,178.93,3.02]
[1753868641329,5.5876,178.97,178.94,5.5884]
[1753868641643,5.5876,178.97,178.95,3.02]
[1753868642026,5.5872,178.98,178.95,3.02]
[1753868642335,2.77834679,179.01,178.95,3.02]
[1753868642635,3.17,179.02,178.97,3.02]
[1753868643031,3.17,179.02,178.98,3.02]
[1753868643232,2.77834679,179.04,178.97,3.02]
[1753868643532,3.17,179.01,178.97,3.02]
[1753868643931,5.5867,179.0,178.97,3.02]
[1753868644338,5.94834679,179.04,178.97,3.02]
[1753868644637,5.5861,179.02,178.97,3.02]
[1753868644839,3.17,179.04,178.97,3.02]
[1753868645040,3.17,179.04,178.98,2.77834679]
[1753868645238,3.17,179.04,178.99,3.02]
[1753868646439,5.5858,179.03,178.99,3.02]
[1753868646935,5.5858,179.03,178.99,5.5866]
[1753868647139,5.5858,179.03,179.0,3.02]
[1753868647541,5.5858,179.03,179.0,5.5865]
[1753868647936,5.5853,179.04,179.01,3.02]
[1753868648642,5.5853,179.04,179.01,5.5862]
[1753868648940,5.5853,179.04,179.02,3.02]
[1753868649435,5.5853,179.04,179.01,3.02]
[1753868650143,5.5853,179.04,179.01,5.586]
[1753868650341,5.5853,179.04,179.02,3.02]
[1753868650541,5.5853,179.04,179.03,3.02]
[1753868653236,10.15186845,179.04,179.03,3.02]
[1753868653438,8.7553,179.04,179.03,3.02]
[1753868653936,13.32189528,179.04,179.03,3.02]
[1753868657848,8.7553,179.04,179.03,3.02]
[1753868658547,13.33400131,179.04,179.03,3.02]
[1753868659036,8.7553,179.04,179.03,3.02]
[1753868661440,2.77834679,179.07,179.0,3.05]
[1753868661441,8.5556,179.03,179.0,3.05]
[1753868661644,2.97,179.02,179.01,3.05]
[1753868661842,2.97,179.06,179.0,3.05]
[1753868662037,8.5557,179.03,179.0,3.05]
[1753868662845,5.5859,179.02,179.0,3.05]
[1753868663144,5.5859,179.02,178.99,8.36494679]
[1753868663350,2.77834679,179.05,178.98,5.587]
[1753868663553,2.97,179.02,179.01,3.05]
[1753868664138,5.74834679,179.05,179.01,3.05]
[1753868664348,4.57968154,179.04,179.01,8.6359]
[1753868664547,5.5851,179.05,179.02,3.05]
[1753868664748,4.57980809,179.04,179.02,3.05]
[1753868665050,8.5551,179.05,179.02,3.05]
[1753868665247,4.57986225,179.04,179.03,8.6356]
[1753868665450,2.97,179.1,179.05,3.05]
[1753868665651,4.57898582,179.09,179.05,3.05]
[1753868665848,8.5536,179.1,179.07,3.05]
[1753868666042,4.56214936,179.09,179.07,3.05]
[1753868666247,2.97,179.1,179.07,8.6341]
[1753868666448,4.69052432,179.13,179.08,3.05]
[1753868666449,2.97,179.13,179.08,3.05]
[1753868666751,7.53159055,179.12,179.08,3.05]
[1753868666947,4.56159055,179.11,179.08,3.05]
[1753868667146,2.97,179.12,179.08,3.05]
[1753868667450,2.97,179.1,179.09,3.05]
[1753868668253,8.5535,179.1,179.09,3.05]
[1753868668449,2.97,179.1,179.09,3.05]
[1753868668851,5.5831,179.12,179.07,5.5843]
[1753868669154,2.97,179.11,179.1,3.05]
[1753868669755,8.5531,179.11,179.1,3.05]
[1753868670153,5.5831,179.11,179.1,3.05]
[1753868670759,8.5531,179.11,179.1,3.05]
[1753868673055,2.77834679,179.15,179.1,3.05]
[1753868673258,4.45232759,179.14,179.1,2.77834679]
[1753868673454,2.97,179.17,179.11,3.05]
[1753868673655,7.42090057,179.16,179.11,3.05]
[1753868673851,10.03280057,179.15,179.11,3.05]
[1753868674057,2.97,179.15,179.11,3.05]
[1753868674356,2.97,179.15,179.09,3.05]
[1753868674555,2.97,179.13,179.09,3.05]
[1753868675063,8.5533,179.11,179.09,3.05]
[1753868675262,8.5533,179.11,179.07,5.5843]
[1753868675456,8.5533,179.11,179.09,3.05]
[1753868675656,8.5533,179.11,179.08,3.05]
[1753868675864,5.5834,179.1,179.08,3.05]
[1753868676258,8.5532,179.11,179.08,3.05]
[1753868676455,5.5832,179.11,179.08,5.584]
[1753868676659,5.5832,179.11,179.09,3.05]
[1753868677464,2.97,179.16,179.11,3.05]
[1753868677667,7.41865828,179.15,179.11,3.05]
[1753868677865,2.97,179.15,179.12,5.5826]
[1753868678058,2.97,179.15,179.13,3.05]
[1753868678256,2.97,179.15,179.14,3.05]
[1753868678459,2.97,179.16,179.15,3.05]
[1753868678655,7.41766225,179.16,179.15,3.05]
[1753868679165,2.97,179.16,179.15,3.05]
[1753868679371,8.5517,179.16,179.15,3.05]
[1753868681065,5.5823,179.14,179.11,8.36134679]
[1753868681277,8.5523,179.14,179.13,3.05]
[1753868681668,8.5536,179.1,179.06,3.05]
[1753868681869,2.97,179.12,179.06,3.05]
[1753868682172,2.97,179.14,179.08,3.05]
[1753868682373,5.583,179.12,179.09,5.5835]
[1753868682574,8.553,179.12,179.1,3.05]
[1753868682770,8.553,179.12,179.11,3.05]
[1753868684379,5.5826,179.13,179.1,5.5833]
[1753868684569,2.97,179.13,179.07,2.77834679]
[1753868684765,2.97,179.13,179.12,3.05]
[1753868684971,2.97,179.13,179.1,3.05]
[1753868685477,5.5828,179.12,179.1,8.6333]
[1753868685672,2.97,179.15,179.08,3.05]
[1753868685869,2.97,179.13,179.08,3.05]
[1753868686269,2.97,179.11,179.1,3.05]
[1753868686770,2.97,179.13,179.07,2.77834679]
[1753868686976,2.97,179.13,179.08,3.05]
[1753868687365,5.5829,179.12,179.1,3.05]
[1753868687879,5.5825,179.13,179.1,3.05]
[1753868688081,2.97,179.15,179.1,3.05]
[1753868688269,2.97,179.15,179.11,3.05]
[1753868688675,8.553,179.12,179.11,3.05]
[1753868689176,8.553,179.12,179.05,3.05]
[1753868689177,2.97,179.11,179.05,3.05]